bitfinex/quotes_ETHUSD_20240820
["timestamp","ask_amount","ask_price","bid_price","bid_amount"]
[1724132890275,3.72343,2685.7,2685.1,6.06575]
[1724132890446,3.0,2685.6,2685.1,6.06575]
[1724132891073,3.0,2685.7,2685.1,6.06575]
[1724132891864,6.72342,2685.7,2685.1,2.3416]
[1724132892045,6.10793,2685.6,2685.1,2.3416]
[1724132892258,3.72372,2685.5,2685.1,2.3416]
[1724132892431,9.83159,2685.6,2685.1,2.3416]
[1724132893256,6.10793,2685.6,2685.1,2.3416]
[1724132893478,9.83159,2685.6,2685.1,2.3416]
[1724132893690,6.10793,2685.6,2685.1,2.3416]
[1724132893829,9.83157,2685.6,2685.1,2.3416]
[1724132894380,3.72371,2685.5,2685.1,2.3416]
[1724132894682,3.72385,2685.4,2685.1,2.3416]
[1724132896882,3.72385,2685.4,2684.8,2.4997]
[1724132897089,7.44776,2685.4,2684.8,2.4997]
[1724132897285,3.72385,2685.4,2684.8,2.4997]
[1724132898487,9.83157,2685.6,2684.8,9.94889]
[1724132898722,9.83157,2685.6,2684.8,6.22424]
[1724132898723,3.0,2685.5,2684.8,6.22424]
[1724132899075,6.7237,2685.5,2684.8,9.94883]
[1724132899277,6.7237,2685.5,2684.8,6.22424]
[1724132899778,6.7237,2685.5,2684.9,0.14679971]
[1724132899977,3.0,2685.5,2684.9,0.14679971]
[1724132900191,3.72336,2685.8,2685.0,6.04027]
[1724132900493,3.72343,2685.7,2685.1,0.14657962]
[1724132900689,6.72343,2685.7,2685.1,3.87082962]
[1724132900912,3.0,2685.7,2685.3,2.316]
[1724132901222,3.0,2685.7,2685.4,3.87008818]
[1724132901402,3.0,2685.7,2685.4,0.14627818]
[1724132901604,3.0,2685.9,2685.4,0.14627818]
[1724132902513,6.72315,2685.9,2685.4,0.14627818]
[1724132903888,3.0,2685.9,2685.4,0.14627818]
[1724132904086,7.46587,2686.1,2685.4,3.87010818]
[1724132904289,3.72221,2686.6,2686.0,2.3471]
[1724132904490,5.087664,2686.6,2686.1,0.14557238]
[1724132904904,3.72234,2686.5,2686.1,0.14557238]
[1724132905086,3.72253,2686.4,2686.1,0.14557238]
[1724132905286,3.72261,2686.3,2686.1,0.14557238]
[1724132905528,4.467105,2686.3,2686.1,0.14557238]
[1724132905739,3.72273,2686.2,2686.1,0.14557238]
[1724132905900,3.72273,2686.2,2685.6,2.3988]
[1724132906100,3.72273,2686.2,2685.7,0.14540564]
[1724132906333,7.46573,2686.2,2685.7,0.14540564]
[1724132906533,8.5273325,2686.2,2685.7,0.14540564]
[1724132906739,3.7229,2686.1,2685.7,0.14540564]
[1724132907033,8.5273325,2686.2,2685.7,0.14540564]
[1724132908087,7.46573,2686.2,2685.7,0.14540564]
[1724132908532,1.559,2685.9,2685.7,0.14540564]
[1724132910648,1.559,2686.1,2685.7,0.14540564]
[1724132913777,1.559,2686.1,2685.7,3.86879564]
[1724132915150,1.559,2686.1,2685.8,6.17611]
[1724132915588,1.559,2686.1,2685.9,0.14514211]
[1724132916697,3.72351,2685.7,2685.3,0.79744506]
[1724132916908,5.28285,2685.4,2685.0,2.4144]
[1724132917196,3.72317,2685.9,2684.7,7.42]
[1724132917197,1.559,2685.1,2684.7,2.4144]
[1724132917364,1.559,2684.9,2684.7,2.4144]
[1724132920591,3.72398,2685.3,2684.7,2.4144]
[1724132920592,3.72398,2685.3,2684.7,6.1392]
[1724132920992,12.79222,2685.5,2684.7,6.1392]
[1724132921150,9.06839,2685.5,2684.8,3.72466]
[1724132922673,3.72384,2685.4,2684.8,3.72466]
[1724132922995,3.0,2685.3,2684.8,3.72466]
[1724132923408,3.0,2685.3,2684.7,2.4144]
[1724132923580,3.0,2685.3,2684.7,6.13913]
[1724132924284,3.0,2685.3,2684.8,3.85644516]
[1724132924679,3.0,2685.3,2684.8,0.13179516]
[1724132924903,6.72402,2685.3,2684.6,9.91476]
[1724132925069,6.72402,2685.3,2684.7,0.13189567]
[1724132925267,6.72402,2685.3,2684.7,3.85668567]
[1724132925268,3.0,2685.3,2684.7,3.85668567]
[1724132926514,6.72398,2685.3,2684.7,3.85668567]
[1724132929908,6.72398,2685.3,2684.8,19.87]
[1724132930111,6.72398,2685.3,2684.9,0.13169465]
[1724132930425,3.72414,2685.2,2684.9,0.13169465]
[1724132930731,3.72414,2685.2,2684.6,6.19004]
[1724132930883,3.72414,2685.2,2684.7,0.13189567]
[1724132932780,3.72414,2685.2,2684.7,0.29909767]
[1724132933193,3.0,2685.3,2684.7,0.29909767]
[1724132933631,6.72402,2685.3,2684.7,4.02387767]
[1724132933812,6.72402,2685.3,2684.7,0.29909767]
[1724132936157,3.72384,2685.4,2684.8,2.3178]
[1724132936450,10.46766,2685.6,2684.8,2.3178]
[1724132936658,3.0,2685.5,2684.9,0.13170061]
[1724132937167,6.72375,2685.5,2684.9,0.13170061]
[1724132940334,3.72385,2685.4,2684.9,0.13170061]
[1724132940659,1.56,2685.2,2684.9,0.13170061]
[1724132940859,1.56,2685.2,2684.9,3.85621061]
[1724132941453,1.56,2685.2,2684.9,0.13170061]
[1724132941766,1.56,2685.0,2684.9,0.13170061]
[1724132942280,1.56,2685.0,2684.7,0.167202]
[1724132942438,1.56,2685.0,2684.9,0.13168583]
[1724132942768,9.00888,2685.0,2684.9,0.13168583]
[1724132942926,9.00888,2685.0,2684.7,0.167202]
[1724132942927,3.72467,2684.8,2684.7,0.167202]
[1724132943136,5.28467,2684.8,2684.7,0.29909288]
[1724132944778,1.56,2684.8,2684.7,0.29909288]
[1724132948471,5.28467,2684.8,2684.7,0.29909288]
[1724132950617,12.00934,2684.8,2684.7,0.29909288]
[1724132950893,13.438574,2684.8,2684.7,0.29909288]
[1724132957377,15.862774,2684.8,2684.7,0.29909288]
[1724132957728,15.862774,2684.8,2684.7,0.167202]
[1724132961597,19.587444,2684.8,2684.7,0.167202]
[1724132962833,20.137444,2684.8,2684.7,0.167202]
[1724132967448,24.37754421,2684.8,2684.7,0.167202]
[1724132967611,1.56,2683.9,2683.8,2.3688]
[1724132967934,1.56,2683.9,2683.5,2.4012]
[1724132968141,1.56,2683.7,2683.5,2.4012]
[1724132968504,1.56,2683.7,2683.6,0.13321342]
[1724132969118,4.56,2683.7,2683.6,0.13321342]
[1724132972304,8.28619,2683.7,2683.6,0.13321342]
[1724132972753,3.72568,2684.1,2683.6,0.13321342]
[1724132972956,4.27467,2684.8,2683.7,2.2909]
[1724132972957,1.56,2684.0,2683.7,2.2909]
[1724132973108,3.72563,2684.2,2683.7,2.2909]
[1724132973109,1.56,2683.8,2683.7,2.2909]
[1724132974231,1.56,2684.2,2683.7,2.2909]
[1724132974429,6.14611,2684.6,2683.9,2.2817]
[1724132974430,1.56,2684.3,2683.9,2.2817]
[1724132974880,1.56,2684.1,2684.0,0.13289979]
[1724132977482,5.28564,2684.1,2684.0,0.13289979]
[1724132977837,5.28564,2684.1,2683.7,2.3952]
[1724132978053,1.56,2683.8,2683.7,2.3952]
[1724132979067,1.56,2684.0,2683.7,2.3952]
[1724132980188,1.56,2683.8,2683.7,2.3952]
[1724132984645,1.56,2683.8,2683.4,2.3487]
[1724132985186,5.28606,2683.8,2683.4,2.3487]
[1724132985481,1.56,2683.6,2683.4,2.3487]
[1724132986287,5.28636,2683.6,2683.2,2.3886]
[1724132987593,5.28662,2683.4,2683.2,2.3886]
[1724132987949,3.72662,2683.4,2683.2,2.3886]
[1724132988887,5.28662,2683.4,2682.9,10.2602]
[1724132989050,5.28662,2683.4,2683.0,0.79665545]
[1724132989246,5.28662,2683.4,2682.9,10.2602]
[1724132989481,5.28636,2683.6,2683.0,0.79663946]
[1724132989678,5.28636,2683.6,2683.1,2.4673]
[1724132989847,1.56,2683.4,2683.1,2.60110793]
[1724132990292,5.28662,2683.4,2683.1,2.60110793]
[1724132991991,5.28662,2683.4,2683.1,0.13380793]
[1724132992213,5.28662,2683.4,2682.9,7.7929]
[1724132992416,5.28662,2683.4,2683.0,0.13390858]
[1724132997720,3.72703,2683.1,2683.0,0.13390858]
[1724132998021,7.45406,2683.1,2683.0,0.13390858]
[1724132998533,3.72722,2683.0,2682.7,0.3729]
[1724132998721,5.28722,2683.0,2682.7,0.3729]
[1724132999112,1.56,2683.0,2682.7,0.3729]
[1724133000422,1.56,2683.2,2682.7,0.3729]
[1724133000624,4.56,2683.2,2682.7,4.10048]
[1724133000916,2.4332,2683.5,2682.9,2.3394]
[1724133001075,1.56,2683.4,2683.0,3.72709]
[1724133002583,3.0,2683.6,2683.0,3.72708]
[1724133002777,1.56,2683.5,2683.0,7.45412]
[1724133003172,1.56,2683.5,2683.0,3.72704]
[1724133003373,1.56,2683.5,2683.0,7.45413]
[1724133003688,1.56,2683.5,2683.0,3.72704]
[1724133003892,1.56,2683.3,2682.9,2.3394]
[1724133004520,1.56,2683.1,2682.9,2.3394]
[1724133004878,1.56,2683.1,2683.0,0.13398928]
[1724133005280,1.56,2683.1,2682.8,7.7929]
[1724133005592,1.56,2683.1,2682.9,0.13408993]
[1724133006178,5.28683,2683.3,2682.9,0.13408993]
[1724133008978,1.56,2683.1,2682.9,0.13408993]
[1724133010522,7.57323,2683.1,2682.9,0.13408993]
[1724133010684,4.857195,2683.0,2682.9,0.13408993]
[1724133011307,4.857195,2683.0,2682.5,19.87]
[1724133011639,1.56,2682.9,2682.5,19.87]
[1724133012341,1.56,2682.7,2682.4,2.3279]
[1724133012882,3.72717,2683.0,2682.1,2.3058]
[1724133012883,5.28788,2682.5,2682.1,2.3058]
[1724133013230,1.56,2682.2,2681.9,2.8084352]
[1724133014590,1.56,2682.2,2681.9,0.5026352]
[1724133019670,1.56,2682.2,2682.0,0.13523963]
[1724133025955,9.71644,2682.1,2682.0,0.13523963]
[1724133026177,10.844084,2682.1,2682.0,0.13523963]
[1724133026344,13.844084,2682.1,2682.0,0.13523963]
[1724133026540,17.572504,2682.1,2682.0,0.13523963]
[1724133026745,18.122504,2682.1,2682.0,0.13523963]
[1724133026941,9.90862,2682.0,2681.9,0.1296352]
[1724133027189,3.0,2682.0,2681.9,0.1296352]
[1724133027373,4.56,2682.0,2681.9,0.1296352]
[1724133027579,4.56,2682.0,2681.9,0.26503482]
[1724133027747,4.56,2682.0,2681.9,0.1296352]
[1724133028144,4.56,2682.0,2681.9,0.26503482]
[1724133028368,1.56,2682.0,2681.9,0.26503482]
[1724133030272,2.4335,2682.5,2682.0,3.72848]
[1724133030522,1.56,2682.6,2682.2,3.72826]
[1724133030822,1.56,2682.8,2682.4,3.72791]
[1724133030973,1.56,2683.0,2682.6,3.72765]
[1724133031323,1.56,2683.0,2682.7,2.43229404]
[1724133032078,1.56,2683.0,2682.7,2.47901802]
[1724133032517,3.72655,2683.5,2682.7,6.20651802]
[1724133032691,3.72655,2683.5,2682.7,9.93398802]
[1724133032893,3.72664,2683.4,2682.7,3.90878802]
[1724133033126,6.2196,2683.6,2682.7,0.18131802]
[1724133033127,3.72684,2683.3,2682.7,0.18131802]
[1724133033332,0.372684,2683.2,2682.7,0.18131802]
[1724133033492,3.7269,2683.2,2682.7,0.18131802]
[1724133034106,3.72655,2683.5,2682.7,3.90888802]
[1724133034107,3.72671,2683.4,2682.7,3.90888802]
[1724133034309,6.72671,2683.4,2682.7,3.90888802]
[1724133034625,3.72677,2683.3,2682.7,3.90888802]
[1724133035612,3.72677,2683.3,2682.7,0.18131802]
[1724133035811,3.72693,2683.2,2682.7,0.18131802]
[1724133036126,6.15875,2683.1,2682.7,0.18131802]
[1724133036304,9.88588,2683.1,2682.7,0.18131802]
[1724133036508,3.72718,2683.0,2682.7,0.18131802]
[1724133036994,3.72718,2683.0,2682.4,3.72799]
[1724133037323,3.72699,2683.2,2682.5,3.90927603]
[1724133038233,7.47583,2683.3,2682.6,6.08911]
[1724133038537,3.72698,2683.2,2682.7,0.18129119]
[1724133039201,3.72725,2683.0,2682.7,0.18129119]
[1724133039404,0.745436,2682.9,2682.3,9.713]
[1724133039614,3.72725,2683.0,2682.4,0.18161327]
[1724133040025,7.4545,2683.0,2682.4,0.18161327]
[1724133040211,3.72725,2683.0,2682.4,0.18161327]
[1724133040411,7.454,2683.2,2682.4,3.90959327]
[1724133040607,5.3468,2683.4,2682.6,3.7277]
[1724133040811,9.07345,2683.4,2682.8,3.72744]
[1724133041017,9.07345,2683.4,2682.9,0.18112002]
[1724133041221,9.07345,2683.4,2682.7,3.72756]
[1724133041495,10.728355,2683.4,2682.8,0.18120493]
[1724133042709,7.47578,2683.3,2682.8,0.18120493]
[1724133042910,6.7269,2683.2,2682.8,0.18120493]
[1724133043096,6.7269,2683.2,2682.6,11.1477]
[1724133043299,3.72716,2683.1,2682.9,0.18109445]
[1724133043519,0.672716,2683.0,2682.6,7.42]
[1724133044227,0.672716,2683.0,2682.6,11.14771]
[1724133044427,3.0,2683.2,2682.6,7.42]
[1724133044623,3.72724,2683.0,2682.6,7.42]
[1724133044982,7.45448,2683.0,2682.6,7.42]
[1724133045102,7.45453,2683.0,2682.6,7.42]
[1724133045534,3.72724,2683.0,2682.6,7.42]
[1724133045731,0.602194,2682.9,2682.6,7.42]
[1724133046950,3.0,2683.0,2682.7,2.3303]
[1724133047099,9.82408,2683.7,2682.9,3.72731]
[1724133047297,3.72642,2683.6,2682.9,7.45453]
[1724133047539,3.72649,2683.5,2682.9,3.72722]
[1724133047842,3.72642,2683.6,2682.9,3.72722]
[1724133048038,1.35505,2683.5,2682.9,3.72722]
[1724133048344,1.35505,2683.5,2683.0,3.7271]
[1724133048515,3.0,2683.6,2683.0,3.7271]
[1724133048742,6.72642,2683.6,2683.0,3.7271]
[1724133049476,3.72647,2683.5,2683.0,3.7271]
[1724133049641,3.0,2683.4,2683.1,0.18089774]
[1724133049849,3.0,2683.4,2682.8,11.14731]
[1724133050055,3.0,2683.4,2683.2,0.18078729]
[1724133050240,3.0,2683.4,2682.8,11.14731]
[1724133050574,3.0,2683.4,2683.3,0.1806607]
[1724133050780,3.8381524,2683.4,2682.8,14.87465]
[1724133050972,3.0,2683.4,2683.3,0.1806607]
[1724133051149,3.0,2683.4,2682.8,14.87465]
[1724133051350,3.0,2683.4,2683.3,0.1806607]
[1724133051827,3.0,2683.4,2682.9,3.7273]
[1724133052031,3.0,2683.4,2683.3,0.1806607]
[1724133052360,3.8381524,2683.4,2682.9,3.7273]
[1724133052549,3.0,2683.4,2683.3,0.1806607]
[1724133052746,3.0,2683.4,2682.9,3.7273]
[1724133053276,3.0,2683.4,2683.0,0.18096784]
[1724133055262,3.0,2683.4,2682.8,11.14731]
[1724133055462,3.0,2683.4,2683.1,0.18086545]
[1724133055628,3.0,2683.4,2682.8,14.87466]
[1724133055834,6.72663,2683.4,2683.2,0.18076307]
[1724133056034,6.72663,2683.4,2682.8,11.14731]
[1724133056237,6.12566,2683.3,2682.8,7.42]
[1724133056436,3.72703,2683.2,2682.8,7.42]
[1724133057345,5.387199,2683.2,2682.8,7.42]
[1724133057872,1.660169,2683.2,2682.6,3.72765]
[1724133058074,6.12566,2683.3,2682.6,3.72765]
[1724133058250,3.72696,2683.2,2682.6,3.72765]
[1724133059838,3.72712,2683.1,2682.4,7.42]
[1724133060052,6.14642,2682.9,2682.4,7.42]
[1724133060376,6.14642,2682.9,2682.2,2.2786]
[1724133060672,6.14642,2682.9,2682.3,0.80126414]
[1724133060876,6.14642,2682.9,2682.4,0.80126414]
[1724133061081,13.49767,2683.1,2682.3,3.72809]
[1724133061297,13.49767,2683.1,2682.2,2.2786]
[1724133061298,9.7705,2683.1,2682.4,4.5294057]
[1724133061453,9.7705,2683.1,2682.6,3.72767]
[1724133061454,2.2944,2683.1,2682.6,3.72767]
[1724133061660,5.2944,2683.1,2682.6,3.72767]
[1724133061885,5.2944,2683.1,2682.5,3.72777]
[1724133062046,3.72725,2683.0,2682.3,3.72801]
[1724133062245,3.72725,2683.0,2682.4,4.52952162]
[1724133062481,5.2944,2683.1,2682.5,4.52943908]
[1724133062784,5.2944,2683.1,2682.5,3.72784]
[1724133063256,9.02145,2683.1,2682.5,3.72784]
[1724133063458,9.02145,2683.1,2682.7,3.72748]
[1724133063459,3.0,2683.1,2682.7,3.72748]
[1724133063652,9.14086,2683.3,2682.7,3.72748]
[1724133063860,5.4141,2683.3,2682.8,3.72737]
[1724133064797,5.4141,2683.3,2682.9,0.18112942]
[1724133065010,3.0,2683.3,2682.9,0.18112942]
[1724133065158,3.749,2683.4,2682.9,3.72728]
[1724133065363,3.749,2683.4,2683.0,0.18102703]
[1724133065661,6.11406,2683.5,2683.0,3.90817703]
[1724133065662,2.3875,2683.5,2683.0,3.90817703]
[1724133065895,2.3875,2683.5,2683.0,0.18102703]
[1724133066964,6.11401,2683.5,2683.0,0.18102703]
[1724133067173,3.0,2683.4,2683.0,0.18102703]
[1724133067572,2.3875,2683.5,2683.0,0.18102703]
[1724133067899,3.0,2683.6,2683.0,6.27998703]
[1724133068289,3.0,2683.6,2683.0,6.35452246]
[1724133068487,3.0,2683.6,2683.0,6.27998703]
[1724133068687,4.35215878,2683.6,2683.0,2.55292703]
[1724133068865,3.72648,2683.5,2683.0,2.55292703]
[1724133069065,3.0,2683.4,2683.0,2.55292703]
[1724133069290,3.0,2683.4,2683.0,6.28008703]
[1724133069470,4.35215878,2683.6,2683.0,6.28008703]
[1724133070097,8.07857878,2683.6,2683.0,2.55292703]
[1724133070400,5.50935288,2683.5,2683.0,2.55292703]
[1724133070608,3.0,2683.4,2683.0,2.55292703]
[1724133071102,3.0,2683.4,2683.0,6.28008703]
[1724133071315,3.0,2683.5,2683.0,6.28008703]
[1724133071525,3.0,2683.5,2683.1,3.72699]
[1724133071707,3.0,2683.8,2683.3,3.72665]
[1724133071903,6.72605,2683.9,2683.3,3.72665]
[1724133072206,3.72607,2683.8,2683.4,0.18052873]
[1724133072410,3.0,2683.7,2683.2,3.72688]
[1724133072609,1.562,2683.5,2683.3,0.1806311]
[1724133072917,1.562,2683.5,2683.2,3.72688]
[1724133073122,1.562,2683.5,2683.4,0.18052873]
[1724133073282,1.562,2683.5,2683.3,0.1806311]
[1724133073484,1.562,2683.5,2683.2,3.72688]
[1724133073804,1.562,2683.5,2683.4,0.1805099]
[1724133074323,1.562,2683.5,2683.2,3.72688]
[1724133074484,6.7261,2683.8,2683.4,0.1805099]
[1724133074684,8.00383,2683.8,2683.2,3.72688]
[1724133075304,6.7261,2683.8,2683.3,0.18061226]
[1724133075512,6.7261,2683.8,2683.3,3.72675]
[1724133075513,3.0,2683.8,2683.3,3.72675]
[1724133075697,3.0,2683.8,2683.4,0.1805099]
[1724133076390,3.0,2683.8,2683.4,2.5399099]
[1724133077643,5.3252,2684.0,2683.4,2.5399099]
[1724133077934,3.72598,2683.9,2683.4,0.1805099]
[1724133078082,6.72606,2683.8,2683.4,0.1805099]
[1724133078711,3.0,2683.8,2683.4,0.1805099]
[1724133079791,2.3192,2684.2,2683.7,3.72619]
[1724133080125,3.72523,2684.4,2683.8,3.98054984]
[1724133080126,2.2691,2684.4,2683.8,3.98054984]
[1724133080428,5.99436,2684.4,2683.8,0.25459984]
[1724133080586,5.99436,2684.4,2683.8,0.18008437]
[1724133080782,3.72538,2684.3,2683.8,0.18008437]
[1724133080983,6.1157,2684.2,2683.8,0.18008437]
[1724133081326,6.1157,2684.2,2683.5,3.72638]
[1724133081327,6.1157,2684.2,2683.9,0.17995246]
[1724133081626,6.1157,2684.2,2683.6,3.72624]
[1724133082100,6.1157,2684.2,2683.7,0.18013425]
[1724133082101,9.84129,2684.2,2683.7,0.18013425]
[1724133082428,6.1157,2684.2,2683.7,0.18013425]
[1724133085588,2.3902,2684.2,2683.7,3.90631425]
[1724133087250,6.1157,2684.2,2683.7,0.18013425]
[1724133088448,6.748,2684.1,2683.7,0.18013425]
[1724133088649,3.72578,2684.0,2683.7,0.18013425]
[1724133088807,3.72578,2684.0,2683.4,7.42]
[1724133089225,7.45164,2684.0,2683.5,0.18024748]
[1724133089521,3.72593,2683.9,2683.5,0.18024748]
[1724133089922,5.384764,2684.0,2683.5,0.18024748]
[1724133090110,3.72578,2684.0,2683.5,0.18024748]
[1724133092260,6.748,2684.1,2683.5,3.90669748]
[1724133092561,6.748,2684.1,2683.6,2.4579]
[1724133092712,10.47367,2684.1,2683.6,2.4579]
[1724133092912,10.47367,2684.1,2683.7,0.18004279]
[1724133093153,3.0,2684.1,2683.8,3.72604]
[1724133093360,9.96884,2684.4,2683.8,3.72604]
[1724133093661,3.0,2684.3,2683.9,0.17983812]
[1724133094423,1.561,2684.0,2683.9,0.17983812]
[1724133095428,1.561,2684.0,2683.7,3.72607]
[1724133095626,1.561,2683.8,2683.6,3.72633]
[1724133095867,1.561,2683.8,2683.7,6.18489]
[1724133096568,1.561,2683.8,2683.7,3.72619]
[1724133097531,1.561,2683.8,2683.7,6.12499]
[1724133100668,1.561,2683.8,2683.7,9.85118]
[1724133101173,1.561,2683.8,2683.7,6.12499]
[1724133103737,1.561,2683.8,2683.7,3.72619]
[1724133104441,1.561,2683.8,2683.5,3.72635]
[1724133104640,1.561,2683.8,2683.6,3.72626]
[1724133107192,1.561,2683.8,2683.7,3.72619]
[1724133108301,3.0,2684.3,2683.8,3.726]
[1724133108583,1.561,2683.9,2683.8,3.726]
[1724133109345,1.561,2683.9,2683.5,3.72637]
[1724133109346,1.561,2683.9,2683.7,3.72619]
[1724133109786,1.561,2683.9,2683.8,0.1799122]
[1724133110145,1.561,2683.9,2683.7,3.72619]
[1724133110346,1.561,2683.9,2683.8,0.1799122]
[1724133110860,1.561,2684.0,2683.8,2.2713]
[1724133111067,3.0,2684.3,2683.8,6.17713991]
[1724133111280,1.561,2684.0,2683.8,6.17713991]
[1724133111709,3.0,2684.3,2684.0,3.72575]
[1724133112004,1.561,2684.1,2683.9,3.90561759]
[1724133112309,1.561,2684.1,2683.9,3.72584]
[1724133113100,6.72508,2684.5,2684.2,3.72548]
[1724133113101,3.0,2684.5,2684.2,3.72548]
[1724133113312,1.561,2684.4,2684.2,6.20018]
[1724133114063,0.620763,2684.8,2684.3,3.72525]
[1724133114405,2.48,2685.0,2684.4,3.72515]
[1724133114566,5.48,2685.0,2684.4,3.72515]
[1724133114769,9.20439,2685.0,2684.4,3.72515]
[1724133115399,9.20439,2685.0,2684.7,3.72472]
[1724133115400,3.0,2685.0,2684.7,3.72472]
[1724133115569,1.561,2684.9,2684.8,3.72464]
[1724133115909,1.561,2684.9,2684.7,2.4607]
[1724133116105,1.561,2684.9,2684.7,6.18547]
[1724133117201,1.561,2684.9,2684.8,3.72467]
[1724133117767,1.561,2684.9,2684.8,7.44934]
[1724133117971,1.561,2685.1,2684.9,3.7244]
[1724133118501,3.0,2685.4,2684.9,3.7244]
[1724133118916,3.72398,2685.3,2684.6,7.4497]
[1724133119115,6.03166,2685.2,2684.6,3.72485]
[1724133119485,2.3075,2685.2,2684.6,3.72485]
[1724133119993,2.3075,2685.2,2684.6,7.44972]
[1724133120198,2.3075,2685.2,2684.7,3.72473]
[1724133121502,2.3075,2685.2,2684.8,3.72463]
[1724133121767,2.3075,2685.2,2684.7,3.7248]
[1724133123223,5.2867,2685.4,2684.8,3.72465]
[1724133123714,3.0,2685.4,2685.0,3.72438]
[1724133124089,5.2867,2685.6,2685.0,3.72438]
[1724133124284,5.2867,2685.6,2685.0,3.72428]
[1724133124707,5.2867,2685.6,2685.1,0.17830833]
[1724133125099,5.2867,2685.6,2685.1,3.90248833]
[1724133125296,5.2867,2685.6,2685.2,3.7241]
[1724133125507,5.2867,2685.6,2685.2,3.9023061]
[1724133125677,6.562113,2685.6,2685.2,0.1782061]
[1724133125879,6.562113,2685.6,2685.0,3.72428]
[1724133126103,6.562113,2685.6,2685.3,0.17810388]
[1724133126313,6.562113,2685.6,2685.0,3.72428]
[1724133126516,5.2867,2685.6,2685.4,0.17800167]
[1724133126790,5.2867,2685.6,2685.1,3.72422]
[1724133127005,5.2867,2685.6,2685.5,0.17789946]
[1724133127212,5.2867,2685.6,2685.1,3.72422]
[1724133127410,5.2867,2685.6,2685.5,0.17789946]
[1724133127647,10.285673,2685.6,2684.9,6.01761]
[1724133127821,10.285673,2685.6,2685.5,0.17789946]
[1724133128021,10.285673,2685.6,2685.0,3.72436]
[1724133128022,5.2867,2685.6,2685.0,3.72436]
[1724133128223,5.2867,2685.6,2685.5,0.17789946]
[1724133128827,5.2867,2685.6,2685.0,3.72429]
[1724133128985,5.2867,2685.6,2685.5,0.17789946]
[1724133129323,6.934464,2685.6,2685.5,0.17789946]
[1724133129619,6.934464,2685.6,2685.0,3.72429]
[1724133129823,5.2867,2685.6,2685.5,0.17789946]
[1724133129979,5.2867,2685.6,2685.0,7.44861]
[1724133130323,5.2867,2685.6,2685.0,7.4486]
[1724133130526,5.2867,2685.6,2685.1,0.17830833]
[1724133131213,3.744,2685.5,2685.1,0.17830833]
[1724133131420,6.1753,2685.2,2685.1,0.17830833]
[1724133131620,3.7244,2685.0,2684.6,9.8849]
[1724133131793,6.1753,2685.2,2684.6,7.42]
[1724133131991,2.3742,2684.8,2684.6,7.42]
[1724133132218,2.3742,2684.8,2684.2,7.42]
[1724133132425,2.3742,2684.8,2684.2,11.14542]
[1724133132633,6.72431,2685.1,2684.2,11.14542]
[1724133132832,9.09851,2685.1,2684.3,2.4848]
[1724133133100,9.09851,2685.1,2684.4,3.72513]
[1724133134644,9.09851,2685.1,2684.3,2.4848]
[1724133134931,3.72449,2685.0,2684.3,6.21006]
[1724133135131,3.72449,2685.0,2684.4,3.7252]
[1724133135333,3.0,2685.1,2684.6,3.72488]
[1724133137460,3.0,2685.1,2684.7,3.72478]
[1724133137655,3.0,2685.2,2684.7,3.72478]
[1724133139852,3.0,2685.2,2684.8,0.17863655]
[1724133140255,3.0,2685.2,2684.7,3.72478]
[1724133140424,3.0,2685.2,2683.3,3.72668]
[1724133140425,2.445,2684.4,2683.3,3.72668]
[1724133140630,1.562,2683.4,2683.3,4.52618189]
[1724133140826,0.5803002,2684.5,2683.5,3.72635]
[1724133141027,1.562,2684.3,2683.8,3.72598]
[1724133141325,3.0,2684.5,2683.8,3.72602]
[1724133141326,1.562,2684.1,2683.8,3.72602]
[1724133141527,1.562,2683.9,2683.8,3.72602]
[1724133142425,3.0,2684.5,2683.8,3.72596]
[1724133142613,6.72509,2684.5,2683.8,3.72596]
[1724133143640,3.72522,2684.4,2683.8,3.72596]
[1724133144214,6.72509,2684.5,2683.8,7.45188]
[1724133144627,6.72509,2684.5,2683.9,6.19729]
[1724133144852,3.0,2684.5,2684.0,3.72574]
[1724133145057,3.746,2684.6,2684.0,3.72569]
[1724133145270,2.4645,2684.9,2684.3,3.72529]
[1724133145414,3.72446,2685.0,2684.3,6.03219]
[1724133145754,7.44918,2684.9,2684.3,2.3069]
[1724133146315,3.7247,2684.8,2684.2,3.72538]
[1724133148672,3.72491,2684.7,2684.0,6.21859]
[1724133148875,3.72504,2684.6,2684.0,3.72569]
[1724133149488,3.72509,2684.5,2684.0,3.72569]
[1724133149775,3.72509,2684.5,2683.9,3.7259]
[1724133150130,7.44985,2684.7,2684.0,3.72577]
[1724133150335,3.725,2684.6,2684.0,3.72577]
[1724133151236,3.72513,2684.5,2683.8,6.22356]
[1724133151469,3.72526,2684.4,2683.8,6.22352]
[1724133151642,11.19608,2684.6,2683.9,3.72589]
[1724133152542,7.471,2684.6,2683.9,3.72589]
[1724133154149,3.72511,2684.5,2683.9,3.72589]
[1724133154355,3.746,2684.6,2684.0,3.72575]
[1724133154560,7.47098,2684.6,2684.0,3.72575]
[1724133154769,7.47098,2684.6,2684.1,0.17369148]
[1724133157846,11.19604,2684.6,2684.1,0.17369148]
[1724133158149,3.72511,2684.5,2684.1,0.17369148]
[1724133158755,3.72511,2684.5,2683.9,3.72592]
[1724133159046,3.72511,2684.5,2684.0,0.17379379]
[1724133159245,7.47098,2684.6,2684.0,3.89957379]
[1724133159973,7.47098,2684.6,2684.0,0.17379379]